[Event "Titled Tuesday Blitz November 07 Early 2023"]
[White "Samunenkov, Ihor"]
[Black "Shukhman, Anna"]
[WhiteFideId "14187086"]
[BlackFideId "54180058"]
[WhiteElo "2765"]
[BlackElo "2538"]
[Result "1-0"]
[Round "5"]
[TimeControl "180+1"]
[Date "2023.11.07"]
[WhiteClock "0:00:19"]
[BlackClock "0:00:14"]
[Board "75"]

1. d4 {[%clk 0:03:00]}  Nf6 {[%clk 0:02:59]} 2. c4 {[%clk 0:03:00]}  e6 {[%clk 0:02:59]} 3. Nc3 {[%clk 0:03:01]}  Bb4 {[%clk 0:02:58]} 4. e3 {[%clk 0:03:01]}  O-O {[%clk 0:02:54]} 5. Bd2 {[%clk 0:03:01]}  b6 {[%clk 0:02:53]} 6. Nf3 {[%clk 0:02:59]}  Bb7 {[%clk 0:02:52]} 7. Bd3 {[%clk 0:03:00]}  c5 {[%clk 0:02:51]} 8. a3 {[%clk 0:02:57]}  Bxc3 {[%clk 0:02:50]} 9. Bxc3 {[%clk 0:02:58]}  Ne4 {[%clk 0:02:48]} 10. Bxe4 {[%clk 0:02:56]}  Bxe4 {[%clk 0:02:46]} 11. dxc5 {[%clk 0:02:56]}  bxc5 {[%clk 0:02:22]} 12. Qd6 {[%clk 0:02:56]}  Nc6 {[%clk 0:02:04]} 13. Qxc5 {[%clk 0:02:49]}  Bxf3 {[%clk 0:01:53]} 14. gxf3 {[%clk 0:02:48]}  Rc8 {[%clk 0:01:52]} 15. Rg1 {[%clk 0:02:24]}  f6 {[%clk 0:01:44]} 16. Qh5 {[%clk 0:02:24]}  Ne7 {[%clk 0:01:36]} 17. Qg4 {[%clk 0:02:14]}  Ng6 {[%clk 0:01:28]} 18. Rd1 {[%clk 0:01:49]}  Qe7 {[%clk 0:01:06]} 19. Bb4 {[%clk 0:01:46]}  Qf7 {[%clk 0:01:04]} 20. Bxf8 {[%clk 0:01:45]}  Rxf8 {[%clk 0:01:04]} 21. f4 {[%clk 0:01:44]}  Rc8 {[%clk 0:01:02]} 22. b3 {[%clk 0:01:43]}  f5 {[%clk 0:00:58]} 23. Qg5 {[%clk 0:01:36]}  Rb8 {[%clk 0:00:36]} 24. Rd3 {[%clk 0:01:33]}  e5 {[%clk 0:00:35]} 25. h4 {[%clk 0:01:27]}  e4 {[%clk 0:00:33]} 26. Rc3 {[%clk 0:01:22]}  Nf8 {[%clk 0:00:33]} 27. b4 {[%clk 0:00:57]}  Ne6 {[%clk 0:00:32]} 28. Qg2 {[%clk 0:00:54]}  a5 {[%clk 0:00:31]} 29. b5 {[%clk 0:00:48]}  Nc5 {[%clk 0:00:31]} 30. Qf1 {[%clk 0:00:44]}  d5 {[%clk 0:00:25]} 31. cxd5 {[%clk 0:00:40]}  Qxd5 {[%clk 0:00:25]} 32. Qc4 {[%clk 0:00:37]}  Qxc4 {[%clk 0:00:20]} 33. Rxc4 {[%clk 0:00:38]}  Rxb5 {[%clk 0:00:21]} 34. Kf1 {[%clk 0:00:34]}  Kf7 {[%clk 0:00:17]} 35. a4 {[%clk 0:00:27]}  Rb1+ {[%clk 0:00:14]} 36. Kg2 {[%clk 0:00:27]}  Rxg1+ {[%clk 0:00:14]} 37. Kxg1 {[%clk 0:00:28]}  Nb3 {[%clk 0:00:14]} 38. Rc3 {[%clk 0:00:19]}  Nd2 {[%clk 0:00:14]} 39. Rc5 {[%clk 0:00:19]}  Nb3 {[%clk 0:00:14]} 40. Rxf5+ {[%clk 0:00:19]}  Ke6 {[%clk 0:00:14]} 41. Rb5 {[%clk 0:00:18]}  Nd2 {[%clk 0:00:14]} 42. Rxa5 {[%clk 0:00:18]}  Nf3+ {[%clk 0:00:15]} 43. Kh1 {[%clk 0:00:19]}  Nxh4 {[%clk 0:00:16]} 44. Rb5 {[%clk 0:00:18]}  Nf3 {[%clk 0:00:16]} 45. a5 {[%clk 0:00:19]}  Kd6 {[%clk 0:00:14]} 46. a6 {[%clk 0:00:19]} 1-0


[Site "https://www.chess.com"]

[Event "Titled Tuesday Blitz November 07 Early 2023"]
[White "Goltsev, Dmitry"]
[Black "Ronka, Erik"]
[WhiteFideId "24176710"]
[BlackFideId "505080"]
[WhiteElo "2754"]
[BlackElo "2530"]
[Result "1-0"]
[Round "5"]
[TimeControl "180+1"]
[Date "2023.11.07"]
[WhiteClock "0:00:10"]
[BlackClock "0:00:05"]
[Board "76"]

1. e4 {[%clk 0:01:22]}  c5 {[%clk 0:02:59]} 2. Nf3 {[%clk 0:01:22]}  e6 {[%clk 0:03:00]} 3. d4 {[%clk 0:01:23]}  cxd4 {[%clk 0:03:00]} 4. Nxd4 {[%clk 0:01:23]}  Nf6 {[%clk 0:03:01]} 5. Nc3 {[%clk 0:01:24]}  d6 {[%clk 0:03:01]} 6. Be2 {[%clk 0:01:24]}  Nc6 {[%clk 0:03:01]} 7. O-O {[%clk 0:01:25]}  Be7 {[%clk 0:03:01]} 8. Be3 {[%clk 0:01:25]}  O-O {[%clk 0:03:02]} 9. f4 {[%clk 0:01:26]}  e5 {[%clk 0:03:02]} 10. fxe5 {[%clk 0:01:24]}  dxe5 {[%clk 0:02:59]} 11. Nf5 {[%clk 0:01:25]}  Bxf5 {[%clk 0:02:58]} 12. Rxf5 {[%clk 0:01:26]}  Qxd1+ {[%clk 0:02:34]} 13. Rxd1 {[%clk 0:01:26]}  g6 {[%clk 0:01:46]} 14. Rff1 {[%clk 0:01:23]}  Rfd8 {[%clk 0:01:43]} 15. Bc4 {[%clk 0:01:22]}  Kg7 {[%clk 0:01:29]} 16. Nd5 {[%clk 0:01:15]}  Nxd5 {[%clk 0:01:16]} 17. exd5 {[%clk 0:01:15]}  Nd4 {[%clk 0:01:14]} 18. d6 {[%clk 0:01:11]}  Bf6 {[%clk 0:01:09]} 19. c3 {[%clk 0:00:55]}  Nf5 {[%clk 0:01:08]} 20. Bf2 {[%clk 0:00:24]}  Nxd6 {[%clk 0:00:38]} 21. Bd5 {[%clk 0:00:22]}  Rd7 {[%clk 0:00:18]} 22. Bc5 {[%clk 0:00:22]}  Rad8 {[%clk 0:00:14]} 23. Bb3 {[%clk 0:00:15]}  b6 {[%clk 0:00:11]} 24. Be3 {[%clk 0:00:15]}  Nf5 {[%clk 0:00:10]} 25. Rxd7 {[%clk 0:00:15]}  Rxd7 {[%clk 0:00:10]} 26. Bc1 {[%clk 0:00:16]}  h5 {[%clk 0:00:10]} 27. a4 {[%clk 0:00:15]}  Ne7 {[%clk 0:00:10]} 28. Bc4 {[%clk 0:00:14]}  Rc7 {[%clk 0:00:09]} 29. b3 {[%clk 0:00:13]}  Nf5 {[%clk 0:00:09]} 30. h3 {[%clk 0:00:13]}  Nd6 {[%clk 0:00:09]} 31. Bd5 {[%clk 0:00:10]}  Rxc3 {[%clk 0:00:10]} 32. Bh6+ {[%clk 0:00:10]}  Kxh6 {[%clk 0:00:07]} 33. Rxf6 {[%clk 0:00:11]}  Nf5 {[%clk 0:00:04]} 34. Rxf7 {[%clk 0:00:11]}  Ne3 {[%clk 0:00:05]} 35. Be4 {[%clk 0:00:09]}  Rxb3 {[%clk 0:00:03]} 36. Rf6 {[%clk 0:00:08]}  Kg7 {[%clk 0:00:03]} 37. Rxg6+ {[%clk 0:00:09]}  Kf8 {[%clk 0:00:03]} 38. Rh6 {[%clk 0:00:08]}  Ra3 {[%clk 0:00:03]} 39. Bc6 {[%clk 0:00:08]}  Nc4 {[%clk 0:00:03]} 40. Rxh5 {[%clk 0:00:07]}  Nb2 {[%clk 0:00:03]} 41. Rxe5 {[%clk 0:00:07]}  Nxa4 {[%clk 0:00:03]} 42. h4 {[%clk 0:00:07]}  Nc5 {[%clk 0:00:03]} 43. h5 {[%clk 0:00:08]}  Kg7 {[%clk 0:00:04]} 44. Bf3 {[%clk 0:00:05]}  Rd3 {[%clk 0:00:03]} 45. Re7+ {[%clk 0:00:05]}  Kh6 {[%clk 0:00:03]} 46. Rxa7 {[%clk 0:00:06]}  Ne6 {[%clk 0:00:03]} 47. Ra6 {[%clk 0:00:06]}  Rb3 {[%clk 0:00:03]} 48. Bd5 {[%clk 0:00:07]}  Rb1+ {[%clk 0:00:04]} 49. Kh2 {[%clk 0:00:07]}  Nf4 {[%clk 0:00:04]} 50. Be4 {[%clk 0:00:08]}  Nxh5 {[%clk 0:00:05]} 51. Bxb1 {[%clk 0:00:08]}  Kg5 {[%clk 0:00:05]} 52. Rxb6 {[%clk 0:00:09]}  Nf4 {[%clk 0:00:05]} 53. g3 {[%clk 0:00:09]}  Ne2 {[%clk 0:00:05]} 54. Rg6+ {[%clk 0:00:09]}  Kh5 {[%clk 0:00:05]} 55. g4+ {[%clk 0:00:08]}  Kh4 {[%clk 0:00:05]} 56. Bf5 {[%clk 0:00:09]}  Nf4 {[%clk 0:00:05]} 57. Rh6+ {[%clk 0:00:10]}  Kg5 {[%clk 0:00:06]} 58. Rh8 {[%clk 0:00:11]}  Nd3 {[%clk 0:00:05]} 59. Kg3 {[%clk 0:00:11]}  Ne5 {[%clk 0:00:05]} 60. Re8 {[%clk 0:00:11]}  Nf7 {[%clk 0:00:05]} 61. Re6 {[%clk 0:00:10]}  Nh6 {[%clk 0:00:05]} 62. Rg6# {[%clk 0:00:10]} 1-0


[Site "https://www.chess.com"]

[Event "Titled Tuesday Blitz November 07 Early 2023"]
[White "Shishkov, Andrei"]
[Black "Perez Gormaz, Matias"]
[WhiteFideId "4500563"]
[BlackFideId "3406342"]
[WhiteElo "2458"]
[BlackElo "2724"]
[Result "0-1"]
[Round "5"]
[TimeControl "180+1"]
[Date "2023.11.07"]
[WhiteClock "0:00:00"]
[BlackClock "0:00:06"]
[Board "78"]

1. d4 {[%clk 0:03:00]}  Nf6 {[%clk 0:02:56]} 2. c4 {[%clk 0:03:01]}  e6 {[%clk 0:02:56]} 3. Nc3 {[%clk 0:03:00]}  Bb4 {[%clk 0:02:57]} 4. Qc2 {[%clk 0:03:00]}  c5 {[%clk 0:02:57]} 5. dxc5 {[%clk 0:03:00]}  Qc7 {[%clk 0:02:57]} 6. a3 {[%clk 0:02:54]}  Bxc5 {[%clk 0:02:53]} 7. b4 {[%clk 0:02:45]}  Be7 {[%clk 0:01:25]} 8. Nb5 {[%clk 0:02:42]}  Qc6 {[%clk 0:01:20]} 9. Nf3 {[%clk 0:02:28]}  d6 {[%clk 0:01:14]} 10. Bb2 {[%clk 0:02:15]}  a6 {[%clk 0:01:10]} 11. Nbd4 {[%clk 0:02:14]}  Qc7 {[%clk 0:01:10]} 12. g4 {[%clk 0:01:58]}  b6 {[%clk 0:00:49]} 13. g5 {[%clk 0:01:55]}  Nfd7 {[%clk 0:00:50]} 14. Nxe6 {[%clk 0:01:32]}  fxe6 {[%clk 0:00:40]} 15. Bxg7 {[%clk 0:01:32]}  Rf8 {[%clk 0:00:36]} 16. Bxf8 {[%clk 0:01:07]}  Nxf8 {[%clk 0:00:35]} 17. Bg2 {[%clk 0:00:55]}  Bb7 {[%clk 0:00:35]} 18. O-O {[%clk 0:00:54]}  Nbd7 {[%clk 0:00:35]} 19. h4 {[%clk 0:00:36]}  O-O-O {[%clk 0:00:22]} 20. Rac1 {[%clk 0:00:35]}  Ng6 {[%clk 0:00:21]} 21. e3 {[%clk 0:00:30]}  Rf8 {[%clk 0:00:22]} 22. Nd4 {[%clk 0:00:27]}  Bxg2 {[%clk 0:00:21]} 23. Nxe6 {[%clk 0:00:20]}  Qc6 {[%clk 0:00:22]} 24. Nxf8 {[%clk 0:00:19]}  Bh3 {[%clk 0:00:19]} 25. e4 {[%clk 0:00:16]}  Ndxf8 {[%clk 0:00:19]} 26. Rfe1 {[%clk 0:00:15]}  Nxh4 {[%clk 0:00:16]} 27. Qd3 {[%clk 0:00:15]}  Bg4 {[%clk 0:00:13]} 28. Qg3 {[%clk 0:00:14]}  Nf3+ {[%clk 0:00:11]} 29. Kh1 {[%clk 0:00:15]}  Ne5 {[%clk 0:00:10]} 30. f4 {[%clk 0:00:15]}  Nfg6 {[%clk 0:00:08]} 31. fxe5 {[%clk 0:00:12]}  Nxe5 {[%clk 0:00:09]} 32. Rf1 {[%clk 0:00:12]}  Qxe4+ {[%clk 0:00:08]} 33. Kh2 {[%clk 0:00:11]}  Bxg5 {[%clk 0:00:08]} 34. Rce1 {[%clk 0:00:10]}  Qg6 {[%clk 0:00:07]} 35. Rxe5 {[%clk 0:00:09]}  Qh5+ {[%clk 0:00:07]} 36. Kg1 {[%clk 0:00:08]}  dxe5 {[%clk 0:00:07]} 37. Qxe5 {[%clk 0:00:08]}  Bd8 {[%clk 0:00:06]} 38. Qxh5 {[%clk 0:00:05]}  Bxh5 {[%clk 0:00:07]} 39. Rf5 {[%clk 0:00:04]}  Bg6 {[%clk 0:00:07]} 40. Re5 {[%clk 0:00:03]}  Bc7 {[%clk 0:00:07]} 41. Re6 {[%clk 0:00:03]}  Kd7 {[%clk 0:00:07]} 42. Rf6 {[%clk 0:00:00]}  Bd6 {[%clk 0:00:06]} 0-1


[Site "https://www.chess.com"]

[Event "Titled Tuesday Blitz November 07 Early 2023"]
[White "krucki03"]
[Black "Halkias, Stelios"]
[BlackFideId "4201809"]
[WhiteElo "2457"]
[BlackElo "2714"]
[Result "0-1"]
[Round "5"]
[TimeControl "180+1"]
[Date "2023.11.07"]
[WhiteClock "0:00:05"]
[BlackClock "0:00:13"]
[Board "79"]

1. e4 {[%clk 0:03:00]}  c5 {[%clk 0:02:59]} 2. Nf3 {[%clk 0:03:01]}  d6 {[%clk 0:02:59]} 3. d4 {[%clk 0:03:00]}  cxd4 {[%clk 0:02:59]} 4. Nxd4 {[%clk 0:03:01]}  Nf6 {[%clk 0:02:59]} 5. Nc3 {[%clk 0:03:02]}  a6 {[%clk 0:02:59]} 6. Qf3 {[%clk 0:03:02]}  e6 {[%clk 0:02:59]} 7. g4 {[%clk 0:03:00]}  Qc7 {[%clk 0:02:54]} 8. Be3 {[%clk 0:02:57]}  Nfd7 {[%clk 0:02:49]} 9. g5 {[%clk 0:02:57]}  Nc6 {[%clk 0:02:48]} 10. Be2 {[%clk 0:02:52]}  Be7 {[%clk 0:02:44]} 11. Qh3 {[%clk 0:02:41]}  Nxd4 {[%clk 0:02:39]} 12. Bxd4 {[%clk 0:02:40]}  O-O {[%clk 0:02:39]} 13. Bd3 {[%clk 0:02:17]}  Ne5 {[%clk 0:02:24]} 14. f4 {[%clk 0:02:12]}  Nxd3+ {[%clk 0:02:23]} 15. Qxd3 {[%clk 0:02:11]}  b5 {[%clk 0:02:20]} 16. O-O-O {[%clk 0:02:05]}  b4 {[%clk 0:02:18]} 17. Ne2 {[%clk 0:02:05]}  e5 {[%clk 0:02:13]} 18. Be3 {[%clk 0:02:04]}  Be6 {[%clk 0:02:12]} 19. b3 {[%clk 0:01:57]}  exf4 {[%clk 0:02:03]} 20. Nxf4 {[%clk 0:01:28]}  Rfc8 {[%clk 0:01:38]} 21. Nd5 {[%clk 0:01:12]}  Bxd5 {[%clk 0:01:36]} 22. exd5 {[%clk 0:01:13]}  a5 {[%clk 0:01:36]} 23. Kb1 {[%clk 0:00:55]}  a4 {[%clk 0:01:35]} 24. Bd4 {[%clk 0:00:51]}  Qa5 {[%clk 0:01:07]} 25. h4 {[%clk 0:00:42]}  Qxd5 {[%clk 0:00:35]} 26. Rhe1 {[%clk 0:00:35]}  Bf8 {[%clk 0:00:35]} 27. Bb2 {[%clk 0:00:29]}  Qa5 {[%clk 0:00:33]} 28. h5 {[%clk 0:00:26]}  axb3 {[%clk 0:00:29]} 29. axb3 {[%clk 0:00:26]}  Qxg5 {[%clk 0:00:27]} 30. Rg1 {[%clk 0:00:15]}  Qxh5 {[%clk 0:00:24]} 31. Qd4 {[%clk 0:00:15]}  Rc3 {[%clk 0:00:17]} 32. Bxc3 {[%clk 0:00:08]}  bxc3 {[%clk 0:00:17]} 33. Qxc3 {[%clk 0:00:09]}  g6 {[%clk 0:00:17]} 34. Qc6 {[%clk 0:00:07]}  Qa5 {[%clk 0:00:15]} 35. Qa4 {[%clk 0:00:07]}  Qd8 {[%clk 0:00:14]} 36. Qc6 {[%clk 0:00:04]}  Bg7 {[%clk 0:00:14]} 37. Qxd6 {[%clk 0:00:05]}  Ra1# {[%clk 0:00:13]} 0-1


[Site "https://www.chess.com"]

[Event "Titled Tuesday Blitz November 07 Early 2023"]
[White "Kostiukov, Alexandr"]
[Black "Wagner, Dennis"]
[WhiteFideId "14108100"]
[BlackFideId "24650684"]
[WhiteElo "2451"]
[BlackElo "2714"]
[Result "0-1"]
[Round "5"]
[TimeControl "180+1"]
[Date "2023.11.07"]
[WhiteClock "0:00:00"]
[BlackClock "0:01:18"]
[Board "80"]

1. g3 {[%clk 0:02:49]}  g6 {[%clk 0:02:55]} 2. Bg2 {[%clk 0:02:47]}  Bg7 {[%clk 0:02:56]} 3. Nf3 {[%clk 0:02:47]}  c5 {[%clk 0:02:55]} 4. c4 {[%clk 0:02:46]}  Nc6 {[%clk 0:02:56]} 5. O-O {[%clk 0:02:46]}  d6 {[%clk 0:02:55]} 6. Nc3 {[%clk 0:02:45]}  e5 {[%clk 0:02:55]} 7. d3 {[%clk 0:02:45]}  Nge7 {[%clk 0:02:56]} 8. Ne1 {[%clk 0:02:42]}  Be6 {[%clk 0:02:56]} 9. Nc2 {[%clk 0:02:42]}  d5 {[%clk 0:02:57]} 10. cxd5 {[%clk 0:02:42]}  Nxd5 {[%clk 0:02:57]} 11. Ne3 {[%clk 0:02:42]}  Nb6 {[%clk 0:02:58]} 12. Na4 {[%clk 0:02:28]}  Nd7 {[%clk 0:02:52]} 13. Bd2 {[%clk 0:02:19]}  Rc8 {[%clk 0:02:47]} 14. Nc3 {[%clk 0:02:09]}  O-O {[%clk 0:02:46]} 15. Nc4 {[%clk 0:01:59]}  Nb6 {[%clk 0:02:29]} 16. b3 {[%clk 0:01:52]}  Rc7 {[%clk 0:02:09]} 17. Ne4 {[%clk 0:01:41]}  Nd4 {[%clk 0:02:02]} 18. Ng5 {[%clk 0:01:25]}  Bd5 {[%clk 0:01:59]} 19. Ne4 {[%clk 0:01:05]}  h6 {[%clk 0:01:52]} 20. Rc1 {[%clk 0:00:55]}  f5 {[%clk 0:01:48]} 21. Nc3 {[%clk 0:00:55]}  Bxg2 {[%clk 0:01:47]} 22. Kxg2 {[%clk 0:00:55]}  Nd5 {[%clk 0:01:42]} 23. e3 {[%clk 0:00:50]}  Nxc3 {[%clk 0:01:40]} 24. Bxc3 {[%clk 0:00:50]}  Qd5+ {[%clk 0:01:40]} 25. f3 {[%clk 0:00:45]}  Nc6 {[%clk 0:01:39]} 26. Qe2 {[%clk 0:00:38]}  Rd7 {[%clk 0:01:37]} 27. Rfd1 {[%clk 0:00:36]}  b5 {[%clk 0:01:35]} 28. Na5 {[%clk 0:00:19]}  Nxa5 {[%clk 0:01:35]} 29. Bxa5 {[%clk 0:00:19]}  b4 {[%clk 0:01:32]} 30. Rc4 {[%clk 0:00:18]}  Rf6 {[%clk 0:01:27]} 31. a3 {[%clk 0:00:15]}  bxa3 {[%clk 0:01:24]} 32. Qa2 {[%clk 0:00:15]}  Ra6 {[%clk 0:01:21]} 33. Ra4 {[%clk 0:00:13]}  e4 {[%clk 0:01:18]} 34. fxe4 {[%clk 0:00:06]}  fxe4 {[%clk 0:01:18]} 35. Qxa3 {[%clk 0:00:00]}  exd3+ {[%clk 0:01:18]} 0-1


[Site "https://www.chess.com"]

[Event "Titled Tuesday Blitz November 07 Early 2023"]
[White "Tsotsonava, Elene"]
[Black "Adla, Diego"]
[WhiteFideId "13615939"]
[BlackFideId "100072"]
[WhiteElo "2397"]
[BlackElo "2671"]
[Result "1-0"]
[Round "5"]
[TimeControl "180+1"]
[Date "2023.11.07"]
[WhiteClock "0:00:16"]
[BlackClock "0:00:02"]
[Board "82"]

1. e4 {[%clk 0:02:58]}  e5 {[%clk 0:02:59]} 2. Nf3 {[%clk 0:02:58]}  Nc6 {[%clk 0:02:59]} 3. Nc3 {[%clk 0:02:58]}  Nf6 {[%clk 0:02:59]} 4. a3 {[%clk 0:02:58]}  d5 {[%clk 0:02:58]} 5. Bb5 {[%clk 0:02:55]}  Nxe4 {[%clk 0:02:57]} 6. Nxe5 {[%clk 0:02:53]}  Qg5 {[%clk 0:02:56]} 7. Nxc6 {[%clk 0:02:44]}  Qxg2 {[%clk 0:02:50]} 8. Qf3 {[%clk 0:02:38]}  Qxf3 {[%clk 0:02:41]} 9. Nd4+ {[%clk 0:02:34]}  c6 {[%clk 0:02:41]} 10. Bxc6+ {[%clk 0:02:35]}  bxc6 {[%clk 0:02:40]} 11. Nxf3 {[%clk 0:02:35]}  Bd6 {[%clk 0:02:25]} 12. d3 {[%clk 0:02:14]}  Nxc3 {[%clk 0:02:24]} 13. bxc3 {[%clk 0:02:15]}  O-O {[%clk 0:02:19]} 14. Be3 {[%clk 0:02:14]}  c5 {[%clk 0:02:10]} 15. Kd2 {[%clk 0:02:00]}  Rb8 {[%clk 0:02:09]} 16. Rhg1 {[%clk 0:01:54]}  f6 {[%clk 0:02:03]} 17. Bh6 {[%clk 0:01:43]}  Rb7 {[%clk 0:02:02]} 18. Rae1 {[%clk 0:01:36]}  Bf5 {[%clk 0:01:56]} 19. h4 {[%clk 0:01:30]}  Bg6 {[%clk 0:01:52]} 20. Be3 {[%clk 0:01:28]}  Re8 {[%clk 0:01:42]} 21. Rb1 {[%clk 0:01:25]}  Reb8 {[%clk 0:01:33]} 22. Rxb7 {[%clk 0:01:23]}  Rxb7 {[%clk 0:01:34]} 23. Kc1 {[%clk 0:01:17]}  Kf7 {[%clk 0:01:28]} 24. Nd2 {[%clk 0:01:13]}  Ke6 {[%clk 0:01:26]} 25. Nb3 {[%clk 0:01:10]}  Rc7 {[%clk 0:01:20]} 26. c4 {[%clk 0:01:05]}  d4 {[%clk 0:01:12]} 27. Bd2 {[%clk 0:01:03]}  Re7 {[%clk 0:01:11]} 28. c3 {[%clk 0:00:53]}  Bxd3 {[%clk 0:01:04]} 29. cxd4 {[%clk 0:00:51]}  Bxc4 {[%clk 0:01:03]} 30. Nxc5+ {[%clk 0:00:49]}  Kd5 {[%clk 0:01:01]} 31. Be3 {[%clk 0:00:46]}  f5 {[%clk 0:00:55]} 32. Rg5 {[%clk 0:00:41]}  g6 {[%clk 0:00:55]} 33. h5 {[%clk 0:00:38]}  Kc6 {[%clk 0:00:53]} 34. hxg6 {[%clk 0:00:37]}  hxg6 {[%clk 0:00:54]} 35. Rxg6 {[%clk 0:00:37]}  f4 {[%clk 0:00:54]} 36. Bxf4 {[%clk 0:00:36]}  Kb5 {[%clk 0:00:32]} 37. Bxd6 {[%clk 0:00:30]}  Re2 {[%clk 0:00:31]} 38. Bg3 {[%clk 0:00:30]}  Ra2 {[%clk 0:00:29]} 39. Ne4 {[%clk 0:00:24]}  Rxa3 {[%clk 0:00:13]} 40. Nd6+ {[%clk 0:00:22]}  Kb4 {[%clk 0:00:14]} 41. Nxc4 {[%clk 0:00:23]}  Kxc4 {[%clk 0:00:15]} 42. Kd2 {[%clk 0:00:19]}  Rd3+ {[%clk 0:00:14]} 43. Ke2 {[%clk 0:00:19]}  Rxd4 {[%clk 0:00:14]} 44. Rc6+ {[%clk 0:00:19]}  Kb5 {[%clk 0:00:14]} 45. Rc7 {[%clk 0:00:18]}  a5 {[%clk 0:00:14]} 46. f4 {[%clk 0:00:18]}  a4 {[%clk 0:00:14]} 47. Rb7+ {[%clk 0:00:19]}  Kc4 {[%clk 0:00:14]} 48. f5 {[%clk 0:00:13]}  a3 {[%clk 0:00:10]} 49. Ra7 {[%clk 0:00:13]}  Kb3 {[%clk 0:00:08]} 50. Ke3 {[%clk 0:00:14]}  Ra4 {[%clk 0:00:05]} 51. Rxa4 {[%clk 0:00:13]}  Kxa4 {[%clk 0:00:04]} 52. Be5 {[%clk 0:00:14]}  Kb5 {[%clk 0:00:04]} 53. f6 {[%clk 0:00:15]}  Kc6 {[%clk 0:00:04]} 54. f7 {[%clk 0:00:15]}  Kd7 {[%clk 0:00:02]} 55. f8=Q {[%clk 0:00:16]} 1-0


[Site "https://www.chess.com"]

[Event "Titled Tuesday Blitz November 07 Early 2023"]
[White "Samarth J Rao"]
[Black "Shuvalova, Polina"]
[WhiteFideId "46652370"]
[BlackFideId "24171760"]
[WhiteElo "2067"]
[BlackElo "2669"]
[Result "1-0"]
[Round "5"]
[TimeControl "180+1"]
[Date "2023.11.07"]
[WhiteClock "0:00:21"]
[BlackClock "0:00:18"]
[Board "83"]

1. e4 {[%clk 0:03:00]}  c6 {[%clk 0:02:54]} 2. d4 {[%clk 0:03:00]}  d5 {[%clk 0:02:55]} 3. Nc3 {[%clk 0:02:57]}  dxe4 {[%clk 0:02:55]} 4. Nxe4 {[%clk 0:02:58]}  Nf6 {[%clk 0:02:55]} 5. Nxf6+ {[%clk 0:02:58]}  exf6 {[%clk 0:02:56]} 6. c3 {[%clk 0:02:56]}  Bd6 {[%clk 0:02:56]} 7. Bd3 {[%clk 0:02:56]}  O-O {[%clk 0:02:57]} 8. Qc2 {[%clk 0:02:57]}  Re8+ {[%clk 0:02:57]} 9. Ne2 {[%clk 0:02:57]}  h5 {[%clk 0:02:57]} 10. Be3 {[%clk 0:02:57]}  Nd7 {[%clk 0:02:56]} 11. O-O-O {[%clk 0:02:57]}  Nf8 {[%clk 0:02:57]} 12. Kb1 {[%clk 0:02:54]}  Be6 {[%clk 0:02:54]} 13. c4 {[%clk 0:02:54]}  Rc8 {[%clk 0:02:53]} 14. h3 {[%clk 0:02:36]}  b5 {[%clk 0:02:47]} 15. c5 {[%clk 0:02:22]}  Bc7 {[%clk 0:02:43]} 16. g4 {[%clk 0:02:20]}  h4 {[%clk 0:02:37]} 17. Rhg1 {[%clk 0:02:03]}  Ng6 {[%clk 0:02:30]} 18. Bc1 {[%clk 0:01:42]}  b4 {[%clk 0:01:59]} 19. f4 {[%clk 0:01:25]}  Qd5 {[%clk 0:01:56]} 20. b3 {[%clk 0:01:23]}  Bd7 {[%clk 0:01:47]} 21. f5 {[%clk 0:01:10]}  Ne7 {[%clk 0:01:26]} 22. Be4 {[%clk 0:00:56]}  Bxf5 {[%clk 0:01:14]} 23. gxf5 {[%clk 0:00:55]}  Qd7 {[%clk 0:01:14]} 24. Bh6 {[%clk 0:00:51]}  Kh7 {[%clk 0:00:49]} 25. Rxg7+ {[%clk 0:00:30]}  Kxh6 {[%clk 0:00:43]} 26. Rdg1 {[%clk 0:00:31]}  Ng6 {[%clk 0:00:37]} 27. R1xg6+ {[%clk 0:00:30]}  fxg6 {[%clk 0:00:37]} 28. Rxd7 {[%clk 0:00:29]}  g5 {[%clk 0:00:35]} 29. Rf7 {[%clk 0:00:20]}  Rf8 {[%clk 0:00:29]} 30. Rxf8 {[%clk 0:00:20]}  Rxf8 {[%clk 0:00:29]} 31. Bxc6 {[%clk 0:00:21]}  Rd8 {[%clk 0:00:25]} 32. d5 {[%clk 0:00:21]}  Be5 {[%clk 0:00:26]} 33. d6 {[%clk 0:00:22]}  Rc8 {[%clk 0:00:24]} 34. Bd7 {[%clk 0:00:21]}  Rd8 {[%clk 0:00:23]} 35. Be6 {[%clk 0:00:21]}  Kg7 {[%clk 0:00:22]} 36. c6 {[%clk 0:00:21]}  Bxd6 {[%clk 0:00:21]} 37. c7 {[%clk 0:00:21]}  Bxc7 {[%clk 0:00:21]} 38. Qxc7+ {[%clk 0:00:22]}  Kh6 {[%clk 0:00:18]} 39. Qxd8 {[%clk 0:00:21]} 1-0


[Site "https://www.chess.com"]

[Event "Titled Tuesday Blitz November 07 Early 2023"]
[White "Thomforde-Toates, Noah"]
[Black "Perez Cruz, Adianet"]
[WhiteFideId "30951992"]
[BlackFideId "3510115"]
[WhiteElo "2644"]
[BlackElo "1975"]
[Result "1-0"]
[Round "5"]
[TimeControl "180+1"]
[Date "2023.11.07"]
[WhiteClock "0:01:18"]
[BlackClock "0:01:01"]
[Board "84"]

1. e4 {[%clk 0:02:08]}  c6 {[%clk 0:02:59]} 2. Bc4 {[%clk 0:02:07]}  d5 {[%clk 0:02:59]} 3. Bb3 {[%clk 0:02:08]}  Nf6 {[%clk 0:02:54]} 4. e5 {[%clk 0:02:08]}  Ne4 {[%clk 0:02:53]} 5. Nc3 {[%clk 0:02:05]}  Bf5 {[%clk 0:02:53]} 6. Nge2 {[%clk 0:02:00]}  e6 {[%clk 0:02:46]} 7. Ng3 {[%clk 0:01:57]}  Nxg3 {[%clk 0:02:45]} 8. hxg3 {[%clk 0:01:58]}  Nd7 {[%clk 0:02:43]} 9. d4 {[%clk 0:01:58]}  a6 {[%clk 0:02:42]} 10. g4 {[%clk 0:01:54]}  Bg6 {[%clk 0:02:37]} 11. Ne2 {[%clk 0:01:55]}  c5 {[%clk 0:02:33]} 12. c3 {[%clk 0:01:48]}  cxd4 {[%clk 0:02:32]} 13. cxd4 {[%clk 0:01:47]}  Bb4+ {[%clk 0:02:32]} 14. Bd2 {[%clk 0:01:47]}  Qa5 {[%clk 0:02:33]} 15. Bxb4 {[%clk 0:01:46]}  Qxb4+ {[%clk 0:02:34]} 16. Qd2 {[%clk 0:01:46]}  Qxd2+ {[%clk 0:02:31]} 17. Kxd2 {[%clk 0:01:47]}  Rc8 {[%clk 0:02:31]} 18. Rac1 {[%clk 0:01:45]}  O-O {[%clk 0:02:31]} 19. Ng3 {[%clk 0:01:41]}  Nb6 {[%clk 0:02:23]} 20. f4 {[%clk 0:01:39]}  Be4 {[%clk 0:02:17]} 21. Nxe4 {[%clk 0:01:37]}  dxe4 {[%clk 0:02:18]} 22. Rc3 {[%clk 0:01:35]}  Rfd8 {[%clk 0:02:05]} 23. Ke3 {[%clk 0:01:33]}  Nd5+ {[%clk 0:01:59]} 24. Bxd5 {[%clk 0:01:33]}  exd5 {[%clk 0:02:00]} 25. Rhc1 {[%clk 0:01:33]}  Rxc3+ {[%clk 0:01:40]} 26. Rxc3 {[%clk 0:01:34]}  g6 {[%clk 0:01:40]} 27. Rc7 {[%clk 0:01:33]}  b5 {[%clk 0:01:35]} 28. Rc6 {[%clk 0:01:31]}  a5 {[%clk 0:01:32]} 29. Rc5 {[%clk 0:01:30]}  b4 {[%clk 0:01:26]} 30. Rxa5 {[%clk 0:01:29]}  Rc8 {[%clk 0:01:27]} 31. Rxd5 {[%clk 0:01:29]}  Rc2 {[%clk 0:01:27]} 32. Rd8+ {[%clk 0:01:27]}  Kg7 {[%clk 0:01:27]} 33. f5 {[%clk 0:01:25]}  gxf5 {[%clk 0:01:25]} 34. gxf5 {[%clk 0:01:25]}  Rxg2 {[%clk 0:01:24]} 35. f6+ {[%clk 0:01:23]}  Kh6 {[%clk 0:01:24]} 36. Kxe4 {[%clk 0:01:23]}  Rxb2 {[%clk 0:01:24]} 37. Kd5 {[%clk 0:01:20]}  Kg6 {[%clk 0:01:23]} 38. Rg8+ {[%clk 0:01:19]}  Kf5 {[%clk 0:01:23]} 39. Rg7 {[%clk 0:01:19]}  Rxa2 {[%clk 0:01:21]} 40. Rxf7 {[%clk 0:01:18]}  b3 {[%clk 0:01:21]} 41. Rb7 {[%clk 0:01:18]}  Rb2 {[%clk 0:01:01]} 42. f7 {[%clk 0:01:18]} 1-0


[Site "https://www.chess.com"]